fUST/lending_fUST_20260420
["ID","MTS","AMOUNT","RATE_DAILY","PERIOD"]
[420853333,1776639045249,-1141.71,0.00019452,2]
[420853334,1776639045259,-500.0,0.00019452,2]
[420853335,1776639045269,-500.0,0.00019452,2]
[420853336,1776639045278,-500.0,0.00019452,2]
[420853337,1776639045287,-500.0,0.00019452,2]
[420853338,1776639045296,-500.0,0.00019452,2]
[420853339,1776639045306,-500.0,0.00019452,2]
[420853341,1776639045315,-500.0,0.00019452,2]
[420853343,1776639045324,-941.77,0.00019452,2]
[420853344,1776639045334,-1846.44,0.00019452,2]
[420853345,1776639045343,-500.0,0.00019452,2]
[420853346,1776639045352,-500.0,0.00019452,2]
[420853347,1776639045361,-510.35810105,0.00019452,2]
[420853348,1776639045371,-500.0,0.00019452,2]
[420853349,1776639045380,-500.0,0.00019452,2]
[420853350,1776639045388,-1000.0,0.00019452,2]
[420853351,1776639045398,-500.0,0.00019452,2]
[420853352,1776639045408,-500.0,0.00019452,2]
[420853353,1776639045417,-500.0,0.00019452,2]
[420853354,1776639045426,-500.0,0.00019452,2]
[420853355,1776639045436,-1148.48,0.00019452,2]
[420853356,1776639045445,-500.0,0.00019452,2]
[420853357,1776639045454,-647.22856947,0.00019452,2]
[420853358,1776639045464,-2321.51,0.00019452,2]
[420853359,1776639045473,-500.0,0.00019452,2]
[420853360,1776639045482,-594.70240246,0.00019452,2]
[420853361,1776639045491,-500.0,0.00019452,2]
[420853362,1776639045500,-638.57,0.00019452,2]
[420853363,1776639045510,-500.0,0.00019452,2]
[420853364,1776639045520,-991.07,0.00019452,2]
[420853365,1776639045529,-1157.55,0.00019452,2]
[420853366,1776639045539,-500.0,0.00019452,2]
[420853367,1776639045548,-500.0,0.00019452,2]
[420853368,1776639045558,-500.0,0.00019452,2]
[420853369,1776639045567,-500.0,0.00019452,2]
[420853370,1776639045577,-500.0,0.00019452,2]
[420853371,1776639045586,-500.0,0.00019452,2]
[420853372,1776639045595,-500.0,0.00019452,2]
[420853373,1776639045604,-500.0,0.00019452,2]
[420853374,1776639045614,-1864.18,0.00019452,2]
[420853375,1776639045623,-500.0,0.00019452,2]
[420853376,1776639045632,-500.0,0.00019452,2]
[420853377,1776639045641,-500.0,0.00019452,2]
[420853378,1776639045651,-500.0,0.00019452,2]
[420853379,1776639045660,-635.94124285,0.00019452,2]
[420853380,1776639045669,-500.0,0.00019452,2]
[420853381,1776639045679,-550.68682343,0.00019452,2]
[420853382,1776639045688,-500.0,0.00019452,2]
[420853383,1776639045698,-500.0,0.00019452,2]
[420853384,1776639045707,-500.0,0.00019452,2]
[420853385,1776639045717,-500.0,0.00019452,2]
[420853386,1776639045727,-500.0,0.00019452,2]
[420853387,1776639045736,-500.0,0.00019452,2]
[420853388,1776639045746,-500.0,0.00019452,2]
[420853389,1776639045756,-500.0,0.00019452,2]
[420853390,1776639045766,-500.0,0.00019452,2]
[420853391,1776639045775,-500.0,0.00019452,2]
[420853392,1776639045784,-500.0,0.00019452,2]
[420853393,1776639045794,-500.0,0.00019452,2]
[420853394,1776639045803,-500.0,0.00019452,2]
[420853395,1776639045813,-1512.36,0.00019452,2]
[420853396,1776639045822,-1116.76,0.00019452,2]
[420853397,1776639045832,-858.6,0.00019452,2]
[420853398,1776639045842,-236.13879509,0.00019452,2]
[420853399,1776639045851,-932.32,0.00019452,2]
[420853400,1776639045861,-583.37,0.00019452,2]
[420853401,1776639045870,-500.0,0.00019452,2]
[420853402,1776639045879,-489.1870615,0.00019452,2]
[420853403,1776639045888,-500.0,0.00019452,2]
[420853404,1776639045898,-500.0,0.00019452,2]
[420853405,1776639045907,-500.0,0.00019452,2]
[420853406,1776639045916,-1209.56,0.00019452,2]
[420853407,1776639045926,-500.0,0.00019452,2]
[420853408,1776639045935,-1358.18,0.00019452,2]
[420853409,1776639045944,-356.86289468,0.00019452,2]
[420853410,1776639045953,-500.0,0.00019452,2]
[420853411,1776639045962,-500.0,0.00019452,2]
[420853412,1776639045971,-500.0,0.00019452,2]
[420853413,1776639045980,-683.77,0.00019452,2]
[420853414,1776639045990,-1202.72,0.00019452,2]
[420853415,1776639045999,-1620.66,0.00019452,2]
[420853416,1776639046009,-899.2,0.00019452,2]
[420853417,1776639046018,-500.0,0.00019452,2]
[420853418,1776639046028,-1476.6,0.00019452,2]
[420853419,1776639046037,-1563.4,0.00019452,2]
[420853420,1776639046046,-898.76,0.00019452,2]
[420853421,1776639046055,-500.0,0.00019452,2]
[420853422,1776639046064,-500.0,0.00019452,2]
[420853423,1776639046073,-500.0,0.00019452,2]
[420853424,1776639046082,-846.64,0.00019452,2]
[420853425,1776639046092,-500.0,0.00019452,2]
[420853426,1776639046103,-500.0,0.00019452,2]
[420853427,1776639046112,-500.0,0.00019452,2]
[420853428,1776639046122,-1101.39,0.00019452,2]
[420853429,1776639046131,-500.0,0.00019452,2]
[420853430,1776639046141,-788.49,0.00019452,2]
[420853431,1776639046151,-500.0,0.00019452,2]
[420853432,1776639046160,-500.0,0.00019452,2]
[420853433,1776639046170,-1393.17,0.00019452,2]
[420853434,1776639046179,-500.0,0.00019452,2]
[420853435,1776639046188,-1910.47,0.00019452,2]
[420853436,1776639046197,-500.0,0.00019452,2]
[420853437,1776639046206,-500.0,0.00019452,2]
[420853438,1776639046215,-1440.16,0.00019452,2]
[420853439,1776639046225,-500.0,0.00019452,2]
[420853440,1776639046235,-500.0,0.00019452,2]
[420853441,1776639046244,-500.0,0.00019452,2]
[420853443,1776639046253,-718.5,0.00019452,2]
[420853445,1776639046262,-500.0,0.00019452,2]
[420853446,1776639046272,-2262.65,0.00019452,2]
[420853447,1776639046281,-500.0,0.00019452,2]
[420853448,1776639046291,-5958.39,0.00019452,2]
[420853449,1776639046300,-3024.05,0.00019452,2]
[420853450,1776639046310,-500.0,0.00019452,2]
[420853451,1776639046319,-500.0,0.00019452,2]
[420853452,1776639046329,-1035.84,0.00019452,2]
[420853453,1776639046338,-506.13989838,0.00019452,2]
[420853454,1776639046347,-500.0,0.00019452,2]
[420853455,1776639046356,-618.26,0.00019452,2]
[420853456,1776639046366,-1646.28,0.00019452,2]
[420853457,1776639046375,-500.0,0.00019452,2]
[420853458,1776639046385,-1619.54,0.00019452,2]
[420853459,1776639046395,-500.0,0.00019452,2]
[420853460,1776639046404,-500.0,0.00019452,2]
[420853461,1776639046414,-500.0,0.00019452,2]
[420853462,1776639046424,-553.44,0.00019452,2]
[420853463,1776639046434,-1277.02,0.00019452,2]
[420853464,1776639046444,-522.09707758,0.00019452,2]
[420853465,1776639046454,-500.0,0.00019452,2]
[420853466,1776639046463,-500.0,0.00019452,2]
[420853467,1776639046473,-500.0,0.00019452,2]
[420853468,1776639046483,-548.52,0.00019452,2]
[420853469,1776639046492,-500.0,0.00019452,2]
[420853470,1776639046503,-500.0,0.00019452,2]
[420853471,1776639046513,-500.0,0.00019452,2]
[420853472,1776639046523,-500.0,0.00019452,2]
[420853473,1776639046533,-1081.08,0.00019452,2]
[420853474,1776639046543,-500.0,0.00019452,2]
[420853475,1776639046552,-6384.04,0.00019452,2]
[420853476,1776639046562,-806.65,0.00019452,2]
[420853477,1776639046571,-500.0,0.00019452,2]
[420853478,1776639046581,-500.0,0.00019452,2]
[420853479,1776639046591,-1055.62,0.00019452,2]
[420853480,1776639046601,-1726.72,0.00019452,2]
[420853481,1776639046611,-500.0,0.00019452,2]
[420853482,1776639046620,-1005.72,0.00019452,2]
[420853483,1776639046630,-551.18273407,0.00019452,2]
[420853484,1776639046639,-500.0,0.00019452,2]
[420853485,1776639046649,-500.0,0.00019452,2]
[420853486,1776639046659,-500.0,0.00019452,2]
[420853487,1776639046669,-824.11,0.00019452,2]
[420853488,1776639046679,-625.0,0.00019452,2]
[420853489,1776639046688,-500.0,0.00019452,2]
[420853490,1776639046698,-500.0,0.00019452,2]
[420853491,1776639046708,-607.76,0.00019452,2]
[420853492,1776639046718,-3006.03,0.00019452,2]
[420853493,1776639046728,-302.25008673,0.00019452,2]
[420853494,1776639046738,-500.0,0.00019452,2]
[420853495,1776639046748,-500.0,0.00019452,2]
[420853496,1776639046757,-759.75,0.00019452,2]
[420853497,1776639046767,-500.0,0.00019452,2]
[420853498,1776639046777,-1482.44,0.00019452,2]
[420853499,1776639046786,-2416.03,0.00019452,2]
[420853500,1776639046796,-500.0,0.00019452,2]
[420853501,1776639046805,-594.75,0.00019452,2]
[420853502,1776639046816,-993.04,0.00019452,2]
[420853503,1776639046825,-500.0,0.00019452,2]
[420853504,1776639046835,-1490.58,0.00019452,2]
[420853505,1776639046845,-5985.31,0.00019452,2]
[420853506,1776639046855,-525.18452994,0.00019452,2]
[420853507,1776639046866,-6471.52,0.00019452,2]
[420853508,1776639046876,-500.0,0.00019452,2]
[420853509,1776639046886,-500.0,0.00019452,2]
[420853510,1776639046897,-1035.39,0.00019452,2]
[420853511,1776639046907,-557.27,0.00019452,2]
[420853512,1776639046917,-500.0,0.00019452,2]
[420853513,1776639046927,-500.0,0.00019452,2]
[420853514,1776639046937,-2529.5,0.00019452,2]
[420853515,1776639046947,-10974.82,0.00019452,2]
[420853516,1776639046957,-1529.11323426,0.00019452,2]
[420853517,1776639047254,-399.90676574,0.00019452,2]
[420853518,1776639047264,-500.0,0.00019452,2]
[420853519,1776639047274,-500.0,0.00019452,2]
[420853520,1776639047285,-909.91,0.00019452,2]
[420853521,1776639047294,-500.0,0.00019452,2]
[420853522,1776639047304,-500.0,0.00019452,2]
[420853523,1776639047314,-1788.8,0.00019452,2]
[420853524,1776639047324,-1721.28,0.00019452,2]
[420853525,1776639047334,-5810.43,0.00019452,2]
[420853526,1776639047343,-500.0,0.00019452,2]
[420853527,1776639047353,-500.0,0.00019452,2]
[420853528,1776639047363,-572.44663668,0.00019452,2]
[420853529,1776639047372,-500.0,0.00019452,2]
[420853530,1776639047383,-525.10360727,0.00019452,2]
[420853531,1776639047393,-500.0,0.00019452,2]
[420853532,1776639047404,-500.0,0.00019452,2]
[420853533,1776639047413,-500.0,0.00019452,2]
[420853534,1776639047423,-10968.16,0.00019452,2]
[420853535,1776639047433,-500.0,0.00019452,2]
[420853536,1776639047443,-500.0,0.00019452,2]
[420853537,1776639047455,-500.0,0.00019452,2]
[420853538,1776639047464,-500.0,0.00019452,2]
[420853539,1776639047474,-500.0,0.00019452,2]
[420853540,1776639047484,-4947.64,0.00019452,2]
[420853541,1776639047494,-500.0,0.00019452,2]
[420853542,1776639047504,-2020.28,0.00019452,2]
[420853543,1776639047514,-765.96,0.00019452,2]
[420853544,1776639047523,-1785.07,0.00019452,2]
[420853545,1776639047533,-918.6,0.00019452,2]
[420853546,1776639047543,-1379.55,0.00019452,2]
[420853547,1776639047552,-1543.02,0.00019452,2]
[420853548,1776639047562,-978.45317433,0.00019452,2]
[420853549,1776639047753,-371.36750556,0.00017898,2]
[420853550,1776639047765,-500.0,0.00019178,2]
[420853551,1776639047774,-662.93701728,0.00019452,2]
[420853552,1776639047911,-1000.0,0.00017799,2]
[420853553,1776639047924,-1372.54152762,0.00017799,2]
[420853554,1776639048000,-871.0,0.00017799,2]
[420853969,1776640155141,-513.0,9.798e-05,2]
[420853970,1776640155164,-5000.0,9.799e-05,2]
[420853971,1776640155186,-300.0,9.999e-05,2]
[420853972,1776640155205,-12361.15064775,0.0001,5]
[420854016,1776640232095,-7945.73194271,0.0001,5]
[420854017,1776640232105,-5000.0,0.00010097,2]
[420854018,1776640232115,-300.0,0.00010199,2]
[420854019,1776640232125,-300.0,0.00010199,2]
[420854020,1776640232135,-300.0,0.00010199,2]
[420854021,1776640232144,-300.0,0.00010199,2]
[420854022,1776640232154,-300.0,0.00010199,2]
[420854023,1776640232164,-300.0,0.00010199,2]
[420854024,1776640232174,-300.0,0.00010199,2]
[420854025,1776640232184,-300.0,0.00010199,2]
[420854026,1776640232193,-300.0,0.00010199,2]
[420854027,1776640232203,-300.0,0.00010199,2]
[420854028,1776640232213,-300.0,0.00010199,2]
[420854029,1776640232222,-300.0,0.00010199,2]
[420854030,1776640232232,-300.0,0.00010199,2]
[420854031,1776640232242,-300.0,0.00010199,2]
[420854032,1776640232251,-300.0,0.00010199,2]
[420854033,1776640232260,-600.0,0.00010402,2]
[420854034,1776640232270,-720.0,0.00011442,2]
[420854035,1776640232279,-172.57444596,0.00011849,2]
[420854036,1776640232289,-864.0,0.00012586,2]
[420854037,1776640232298,-830.81309644,0.000129,2]
[420854038,1776640232307,-830.81309641,0.000129,2]
[420854039,1776640232317,-327.53977028,0.00013424,2]
[420854040,1776640232326,-830.81309641,0.00013471,2]
[420854041,1776640232335,-156.0,0.00013699,2]
[420854042,1776640232344,-1000.0,0.00013699,2]
[420854043,1776640232353,-1000.0,0.00013845,2]
[420854044,1776640232362,-830.81309641,0.00015157,2]
[420854045,1776640232371,-1000.0,0.0001523,2]
[420854046,1776640232380,-244.0,0.0001523,2]
[420854047,1776640232389,-167.37796,0.00016627,2]
[420854048,1776640232398,-1000.0,0.00016752,2]
[420854049,1776640232407,-492.0,0.00016752,2]
[420854050,1776640232416,-830.81309641,0.00016842,2]
[420854051,1776640232426,-2268.00965466,0.00017599,2]
[420854052,1776640232435,-152.0,0.00017629,7]
[420854053,1776640232445,-152.0,0.00017629,7]
[420854054,1776640232455,-152.0,0.00017629,7]
[420854055,1776640232464,-152.0,0.00017629,7]
[420854056,1776640232474,-152.0,0.00017629,7]
[420854057,1776640232483,-152.0,0.00017629,7]
[420854058,1776640232493,-152.0,0.00017629,7]
[420854059,1776640232502,-152.0,0.00017629,7]
[420854060,1776640232512,-152.0,0.00017629,7]
[420854061,1776640232522,-152.0,0.00017629,7]
[420854062,1776640232531,-42.25299099,0.00017629,7]
[420854063,1776640232545,-109.74700901,0.00017629,7]
[420854064,1776640232554,-152.0,0.00017629,7]
[420854065,1776640232563,-152.0,0.00017629,7]
[420854066,1776640232572,-152.0,0.00017629,7]
[420854067,1776640232580,-500.0,0.00017673,2]
[420854068,1776640232590,-500.0,0.00017673,2]
[420854069,1776640232599,-500.0,0.00017698,2]
[420854070,1776640232608,-500.0,0.00017698,2]
[420854071,1776640232617,-500.0,0.00017698,2]
[420854072,1776640232627,-500.0,0.00017698,2]
[420854073,1776640232636,-415.5995753,0.00017698,2]
[420854074,1776640232645,-500.0,0.00017698,2]
[420854075,1776640232654,-500.0,0.00017698,2]
[420854076,1776640232663,-356.48294433,0.00017698,2]
[420854077,1776640232672,-630.1226177,0.00017698,2]
[420854078,1776640232681,-500.0,0.00017698,2]
[420854079,1776640232691,-500.0,0.00017698,2]
[420854080,1776640232700,-422.04785368,0.00017698,2]
[420854241,1776640238399,-77.95214632,0.00017698,2]
[420854242,1776640238408,-531.81088181,0.00017698,2]
[420854243,1776640238417,-500.0,0.00017698,2]
[420854244,1776640238426,-500.0,0.00017698,2]
[420854245,1776640238435,-500.0,0.00017698,2]
[420854246,1776640238444,-500.0,0.00017698,2]
[420854247,1776640238453,-500.0,0.00017698,2]
[420854248,1776640238462,-500.0,0.00017698,2]
[420854249,1776640238471,-500.0,0.00017698,2]
[420854250,1776640238480,-500.0,0.00017698,2]
[420854251,1776640238488,-500.0,0.00017698,2]
[420854252,1776640238497,-568.78739212,0.00017698,2]
[420854253,1776640238507,-568.78739212,0.00017698,2]
[420854254,1776640238515,-568.78739212,0.00017698,2]
[420854255,1776640238525,-568.78739212,0.00017698,2]
[420854256,1776640238534,-568.78739212,0.00017698,2]
[420854257,1776640238543,-568.78739212,0.00017698,2]
[420854258,1776640238552,-63206.1294707,0.00017699,2]
[420854293,1776640246579,-152.0,0.00014029,7]
[420854294,1776640246589,-152.0,0.00014029,7]
[420854295,1776640246598,-152.0,0.00014029,7]
[420854296,1776640246609,-152.0,0.00014029,7]
[420854297,1776640246618,-152.0,0.00014029,7]
[420854298,1776640246627,-15877.42980715,0.00017699,2]
[420854347,1776641201139,-333.81093027,9.134e-05,2]
[420854376,1776641432357,-618.10058986,8.861e-05,2]
[420854378,1776641432369,-430.89941014,8.861e-05,2]
[420854380,1776641432379,-114.93771925,8.862e-05,2]
[420854382,1776641432390,-410.71337545,8.862e-05,2]
[420854385,1776641432410,-1949.35081786,8.862e-05,2]
[420854386,1776641432467,-675.42364712,8.862e-05,2]
[420854499,1776641438604,-1849.57444032,8.862e-05,2]
[420854500,1776641438615,-27.20083467,8.862e-05,2]
[420854504,1776641438660,-516.79916533,8.862e-05,2]
[420854505,1776641438669,-59.02581497,8.952e-05,2]
[420854528,1776641440857,-180.77642776,8.952e-05,2]
[420854529,1776641440866,-300.0,9.041e-05,2]
[420854530,1776641440876,-3720.24751316,9.042e-05,2]
[420854531,1776641440886,-150.0,9.134e-05,2]
[420854533,1776641440895,-300.0,9.945e-05,2]
[420854535,1776641440905,-160.40671453,0.0001,2]
[420854537,1776641440914,-177.0,0.00011134,2]
[420854539,1776641440923,-1073.17531054,0.00012568,2]
[420854541,1776641440935,-1192.67223071,0.00012568,2]
[420854595,1776641443540,-4407.43473767,0.00012568,2]
[420854597,1776641443549,-574.2008347,0.00012568,2]
[420854599,1776641443560,-204.0,0.00013134,2]
[420854601,1776641443569,-1000.0,0.00013699,2]
[420854603,1776641443578,-160.40671453,0.00015953,14]
[420854605,1776641443587,-9658.52250218,0.00017,2]
[420854607,1776641443597,-272.61054726,0.00017571,2]
[420854609,1776641443606,-152.0,0.00017617,7]
[420854611,1776641443616,-152.0,0.00017666,7]
[420854612,1776641443626,-920.3166902,0.00017669,2]
[420854614,1776641443635,-152.0,0.00017671,30]
[420854615,1776641443644,-152.0,0.00017702,7]
[420854617,1776641443655,-152.0,0.00017702,7]
[420854619,1776641443665,-152.0,0.00017702,7]
[420854621,1776641443674,-152.0,0.00017702,7]
[420854623,1776641443683,-152.0,0.00017702,7]
[420854625,1776641443693,-152.0,0.00017728,30]
[420854627,1776641443702,-152.0,0.00017735,7]
[420854629,1776641443711,-152.0,0.00017735,7]
[420854632,1776641443720,-152.0,0.00017745,30]
[420854635,1776641443731,-152.0,0.00017745,30]
[420854637,1776641443740,-152.0,0.00017753,7]
[420854639,1776641443750,-152.0,0.00017753,7]
[420854641,1776641443759,-152.0,0.00017753,7]
[420854643,1776641443769,-160.40671453,0.00017775,60]
[420854645,1776641443778,-167.37796,0.00017794,2]
[420854647,1776641443787,-333.16229193,0.00017949,2]
[420854653,1776641443845,-37.09010336,0.00017949,2]
[420854655,1776641443857,-229.74760471,0.00017949,2]
[420854657,1776641443866,-326.1616993,0.00018073,2]
[420854659,1776641443874,-151.0,0.00018125,2]
[420854660,1776641443883,-272.61054726,0.00018217,2]
[420854661,1776641443893,-441.0,0.00018296,2]
[420854662,1776641443902,-184.0,0.00018296,2]
[420854663,1776641443911,-317.667,0.00018697,2]
[420854664,1776641443920,-272.61054726,0.00018862,2]
[420854665,1776641443930,-167.37796,0.0001896,2]
[420854666,1776641443939,-151.0,0.00018975,2]
[420854667,1776641443948,-1371.47199795,0.00019061,2]
[420854668,1776641444003,-669.73669128,0.00019061,2]
[420854669,1776641444012,-1984.10188382,0.00019063,2]
[420854670,1776641444034,-1096.90720777,0.00019063,2]
[420854703,1776641446628,-152.0,0.00017617,7]
[420854704,1776641446638,-152.0,0.00017617,7]
[420854705,1776641446647,-152.0,0.00017623,30]
[420854706,1776641446657,-152.0,0.00017623,30]
[420854707,1776641446667,-152.0,0.00017623,30]
[420854708,1776641446676,-3918.26167005,0.00019063,2]
[420854709,1776641446686,-500.0,0.00019077,2]
[420854710,1776641446695,-500.0,0.00019077,2]
[420854711,1776641446704,-500.0,0.00019077,2]
[420854712,1776641446713,-500.0,0.00019077,2]
[420854713,1776641446723,-500.0,0.00019077,2]
[420854714,1776641446732,-500.0,0.00019077,2]
[420854715,1776641446742,-548.45031145,0.00019077,2]
[420854716,1776641446751,-500.0,0.00019077,2]
[420854717,1776641446760,-212.84439726,0.00019077,2]
[420854718,1776641446770,-500.0,0.00019077,2]
[420854719,1776641446779,-500.0,0.00019077,2]
[420854720,1776641446788,-500.0,0.00019077,2]
[420854721,1776641446798,-500.0,0.00019077,2]
[420854722,1776641446807,-74868.02155044,0.00019078,2]
[420854723,1776641446816,-26080.40738937,0.00019078,2]
[420854724,1776641446835,-2404.99956709,0.00019078,2]
[420854760,1776642632917,-527.68893863,9.899e-05,2]
[420854761,1776642632970,-1009.63662955,9.899e-05,2]
[420854762,1776642633023,-296.92009493,9.899e-05,2]
[420854763,1776642633035,-1670.7999998,9.899e-05,2]
[420854764,1776642633046,-1395.27604,9.899e-05,2]
[420854766,1776642633057,-99.67829709,9.899e-05,2]
[420854768,1776642633066,-223.0,9.999e-05,2]
[420854770,1776642633075,-582.63020829,0.0001,2]
[420854772,1776642633085,-213.02894122,0.0001,2]
[420854773,1776642633094,-15.1625534,0.0001,2]
[420854889,1776642641188,-462.94812807,9.9e-05,2]
[420854918,1776642646920,-1674.45187197,9.9e-05,2]
[420854919,1776642646929,-350.34755991,0.0001,2]
[420854920,1776642646939,-178.41310034,0.0001,2]
[420854921,1776642646948,-560.0,0.0001,2]
[420854922,1776642646957,-150.0,0.00010158,2]
[420854923,1776642646967,-300.0,0.00010199,2]
[420854924,1776642646976,-300.0,0.00010199,2]
[420854925,1776642646986,-300.0,0.00010316,2]
[420854926,1776642646994,-582.63020829,0.00010317,2]
[420854927,1776642647003,-582.63020829,0.00010634,2]
[420854928,1776642647012,-582.63020829,0.00010951,7]
[420854929,1776642647021,-582.63020829,0.00011268,7]
[420854930,1776642647030,-365.51011331,0.00011313,7]
[420854931,1776642647040,-582.63020829,0.00011585,7]
[420854932,1776642647050,-300.0,0.00011762,24]
[420854933,1776642647060,-582.63020829,0.00011902,7]
[420854934,1776642647070,-177.0,0.00012158,2]
[420854935,1776642647080,-582.63020829,0.00012219,7]
[420854936,1776642647089,-582.63020829,0.00012536,7]
[420854937,1776642647099,-365.51011331,0.00012626,7]
[420854938,1776642647108,-582.63020829,0.00012853,14]
[420854939,1776642647117,-582.63020829,0.00013169,14]
[420854940,1776642647126,-582.63020829,0.00013486,14]
[420854941,1776642647136,-200.35202305,0.00013699,2]
[420854942,1776642647145,-1000.0,0.00013699,2]
[420854943,1776642647154,-582.63020829,0.00013803,14]
[420854944,1776642647164,-365.51011331,0.00013939,14]
[420854945,1776642647173,-582.63020829,0.0001412,14]
[420854946,1776642647183,-204.0,0.00014158,2]
[420854947,1776642647192,-582.63020829,0.00014437,14]
[420854948,1776642647202,-178.41310034,0.00014596,14]
[420854949,1776642647211,-213.02894122,0.00014596,14]
[420854950,1776642647220,-582.63020829,0.00014754,30]
[420854951,1776642647230,-582.63020829,0.00015071,30]
[420854952,1776642647239,-365.51011331,0.00015252,30]
[420854953,1776642647248,-582.63020829,0.00015388,30]
[420854954,1776642647258,-582.63020829,0.00015705,30]
[420854955,1776642647267,-582.63020829,0.00016022,30]
[420854956,1776642647277,-231.0,0.00016158,2]
[420854957,1776642647286,-582.63020829,0.00016339,30]
[420854958,1776642647296,-365.51011331,0.00016565,60]
[420854959,1776642647306,-582.63020829,0.00016656,60]
[420854960,1776642647316,-582.63020829,0.00016973,60]
[420854961,1776642647326,-2000.0,0.0001699,2]
[420854962,1776642647336,-500.0,0.00016999,2]
[420854963,1776642647345,-582.63020829,0.0001729,60]
[420854964,1776642647355,-375.59783812,0.00017555,2]
[420854965,1776642647365,-1502.39135249,0.00017555,2]
[420854966,1776642647376,-3377.00016256,0.00017555,2]
[420854967,1776642647387,-500.0,0.00017607,60]
[420854968,1776642647396,-582.63020829,0.00017607,60]
[420854969,1776642647406,-152.0,0.00017635,7]
[420854970,1776642647416,-152.0,0.00017635,7]
[420854971,1776642647427,-152.0,0.00017635,7]
[420854972,1776642647437,-152.0,0.0001764,30]
[420854973,1776642647447,-152.0,0.0001764,30]
[420854974,1776642647456,-365.51011331,0.00017878,60]
[420854975,1776642647465,-582.63020829,0.00017924,60]
[420854976,1776642647475,-160.0,0.00018063,2]
[420854977,1776642647484,-582.63020829,0.00018241,60]
[420854978,1776642647494,-645.0,0.00018322,2]
[420854979,1776642647503,-2209.0,0.00018322,2]
[420854980,1776642647514,-1414.636,0.00018322,2]
[420854981,1776642647523,-536.777,0.00018322,2]
[420854982,1776642647532,-150.0,0.00018322,2]
[420854983,1776642647542,-273.944,0.00018322,2]
[420854984,1776642647551,-500.0,0.00018377,5]
[420854985,1776642647560,-537.6845,0.00018396,2]
[420854986,1776642647570,-1957.856,0.00018396,2]
[420854987,1776642647579,-2150.738,0.00018396,2]
[420854988,1776642647589,-557.5788265,0.00018451,2]
[420854989,1776642647600,-2030.296672,0.00018451,2]
[420854990,1776642647609,-2650.72365084,0.00018479,2]
[420854991,1776642647619,-5958.16408618,0.00018479,2]
[420854992,1776642647628,-578.20924308,0.00018506,2]
[420854993,1776642647638,-2105.41764886,0.00018506,2]
[420854994,1776642647647,-582.63020829,0.00018558,120]
[420854995,1776642647657,-599.60298507,0.00018561,2]
[420854996,1776642647666,-2183.31810187,0.00018561,2]
[420854997,1776642647679,-621.78829552,0.00018616,2]
[420854998,1776642647688,-2264.10087164,0.00018616,2]
[420854999,1776642647698,-644.79446246,0.00018671,2]
[420855000,1776642647709,-2347.87260389,0.00018671,2]
[420855001,1776642647719,-668.65185757,0.00018726,2]
[420855002,1776642647729,-2434.74389024,0.00018726,2]
[420855003,1776642647741,-686.10606249,0.00018728,2]
[420855004,1776642647752,-686.10606249,0.0001873,2]
[420855005,1776642647761,-686.10606249,0.00018732,2]
[420855006,1776642647771,-686.10606249,0.00018734,2]
[420855007,1776642647781,-1837.08782028,0.00018736,2]
[420855008,1776642647790,-686.10606249,0.00018736,2]
[420855009,1776642647800,-693.3919763,0.00018781,2]
[420855010,1776642647810,-2524.82941417,0.00018781,2]
[420855011,1776642647821,-160.0,0.00018794,7]